fUST/lending_fUST_20250802
["ID","MTS","AMOUNT","RATE_DAILY","PERIOD"]
[376718549,1754087323517,595.64201609,0.00024,120]
[376718550,1754087323735,1871.54667653,0.00018,120]
[376718551,1754087324572,163.8185979,0.0002714,120]
[376718552,1754087324629,1137.52129874,0.0002714,120]
[376718553,1754087324695,220.47175341,0.0001536,120]
[376718554,1754087325291,503.76512,0.0002714,120]
[376718555,1754087325434,536.44966063,0.0002714,120]
[376718556,1754087325490,632.7011627,0.000245,120]
[376718557,1754087325951,1055.78695774,0.00024,120]
[376718558,1754087326121,1020.3847049,0.0002,120]
[376718559,1754087326416,221.09892414,0.0002714,120]
[376718567,1754087326806,2092.17563366,0.0002714,60]
[376718568,1754087327407,1078.31915759,0.0002714,120]
[376718570,1754087327495,983.69385949,0.0002714,120]
[376718571,1754087327576,706.7650441,0.00026,120]
[376718572,1754087327854,286.19382796,0.00024,120]
[376718573,1754087328046,422.75794786,0.00025,120]
[376718574,1754087328394,300.0,0.0002714,30]
[376718575,1754087328570,406.82795561,0.0002714,120]
[376718576,1754087328626,185.64487049,0.0002714,120]
[376718577,1754087329074,265.89074782,0.00023,120]
[376718578,1754087329132,512.53831752,0.0002714,120]
[376718579,1754087340453,176.936936,0.00019178,2]
[376718580,1754087343253,353.005659,0.00018243,2]
[376718581,1754087375795,1051.57549156,0.00019178,2]
[376718583,1754087421538,3000.0,0.000231,29]
[376718647,1754087432733,-151.0,0.000192,2]
[376718649,1754087432743,-257.22552277,0.00019236,2]
[376718652,1754087432761,-300.0,0.00019237,2]
[376718654,1754087432773,-300.0,0.00019237,2]
[376718656,1754087432783,-300.0,0.00019237,2]
[376718658,1754087432792,-244.0,0.00019237,2]
[376718660,1754087432802,-300.0,0.00019237,2]
[376718662,1754087432812,-1200.0,0.00019237,2]
[376718664,1754087432821,-186.81,0.00019237,2]
[376718666,1754087432831,-186.81,0.00019238,2]
[376718668,1754087432840,-3493.3,0.00019238,3]
[376718670,1754087432850,-1746.65,0.00019238,3]
[376718672,1754087432859,-873.33,0.00019238,3]
[376718674,1754087432868,-436.66,0.00019238,3]
[376718676,1754087432884,-218.33,0.00019238,3]
[376718678,1754087432894,-186.81,0.00019239,2]
[376718680,1754087432904,-1200.0,0.00019243,2]
[376718681,1754087432914,-705.43574187,0.00019244,2]
[376718683,1754087432924,-463.55,0.00019245,2]
[376718684,1754087432934,-460.0,0.00019245,2]
[376718685,1754087432943,-460.0,0.00019245,2]
[376718686,1754087432952,-460.0,0.00019245,2]
[376718687,1754087432962,-460.0,0.00019245,2]
[376718688,1754087432972,-460.0,0.00019245,2]
[376718689,1754087432982,-460.0,0.00019246,2]
[376718690,1754087432991,-486.92105167,0.00019246,2]
[376718691,1754087433001,-460.0,0.00019246,2]
[376718692,1754087433011,-460.0,0.00019246,2]
[376718693,1754087433021,-460.0,0.00019246,2]
[376718694,1754087433032,-460.0,0.00019246,2]
[376718695,1754087433041,-460.0,0.00019246,2]
[376718696,1754087433219,-460.0,0.00019246,2]
[376718697,1754087433228,-460.0,0.00019246,2]
[376718698,1754087433238,-833.01,0.00019246,2]
[376718699,1754087433247,-460.0,0.00019246,2]
[376718700,1754087433256,-630.5,0.00019246,2]
[376718701,1754087433266,-460.0,0.00019246,2]
[376718702,1754087433276,-265.73440307,0.00019246,2]
[376718703,1754087433286,-460.0,0.00019246,2]
[376718704,1754087433296,-1359.71,0.00019246,2]
[376718705,1754087433306,-460.0,0.00019246,2]
[376718706,1754087433316,-460.0,0.00019246,2]
[376718707,1754087433325,-460.0,0.00019246,2]
[376718708,1754087433335,-1154.66,0.00019246,2]
[376718709,1754087433345,-460.0,0.00019246,2]
[376718710,1754087433354,-460.0,0.00019246,2]
[376718711,1754087433364,-460.0,0.00019246,2]
[376718712,1754087433377,-460.0,0.00019246,2]
[376718713,1754087433387,-460.0,0.00019246,2]
[376718714,1754087433397,-460.0,0.00019246,2]
[376718715,1754087433407,-154.6086032,0.00019246,2]
[376718716,1754087433430,-371.4231319,0.00019246,2]
[376718717,1754087433442,-166.6282649,0.00019246,2]
[376718718,1754087433452,-469.25,0.00019246,2]
[376718719,1754087433464,-888.31,0.00019246,2]
[376718720,1754087433474,-460.0,0.00019246,2]
[376718721,1754087433484,-460.0,0.00019246,2]
[376718722,1754087433493,-460.0,0.00019246,2]
[376718723,1754087433506,-460.0,0.00019246,2]
[376718724,1754087433515,-460.0,0.00019246,2]
[376718725,1754087433525,-906.18,0.00019246,2]
[376718726,1754087433534,-951.23,0.00019246,2]
[376718727,1754087433544,-667.47,0.00019246,2]
[376718728,1754087433553,-460.0,0.00019246,2]
[376718729,1754087433563,-460.0,0.00019246,2]
[376718730,1754087433573,-460.0,0.00019246,2]
[376718731,1754087433582,-460.0,0.00019246,2]
[376718732,1754087433593,-735.68,0.00019246,2]
[376718733,1754087433602,-981.28,0.00019246,2]
[376718734,1754087433612,-974.29472324,0.00019246,2]
[376718753,1754087438453,-72.29527676,0.00019246,2]
[376718754,1754087438464,-460.0,0.00019246,2]
[376718755,1754087438473,-460.0,0.00019246,2]
[376718756,1754087438482,-460.0,0.00019246,2]
[376718757,1754087438492,-147.70472324,0.00019247,2]
[376718758,1754087438504,-312.29527676,0.00019247,2]
[376718759,1754087438513,-460.0,0.00019247,2]
[376718760,1754087438522,-483.51803398,0.00019247,2]
[376718761,1754087438531,-460.0,0.00019247,2]
[376718762,1754087438540,-460.0,0.00019247,2]
[376718763,1754087438550,-460.0,0.00019247,2]
[376718764,1754087438559,-460.0,0.00019247,2]
[376718765,1754087438567,-460.0,0.00019247,2]
[376718766,1754087438576,-484.22923534,0.00019247,2]
[376718767,1754087438585,-427.35721912,0.00019247,2]
[376718768,1754087438597,-32.64278088,0.00019247,2]
[376718769,1754087438606,-460.0,0.00019247,2]
[376718770,1754087438616,-415.74493917,0.00019247,2]
[376718771,1754087438628,-460.0,0.00019247,2]
[376718772,1754087438637,-460.0,0.00019247,2]
[376718773,1754087438646,-460.0,0.00019247,2]
[376718774,1754087438655,-460.0,0.00019247,2]
[376718775,1754087438665,-460.0,0.00019247,2]
[376718776,1754087438674,-460.0,0.00019247,2]
[376718777,1754087438683,-460.0,0.00019247,2]
[376718778,1754087438692,-128.24466048,0.00019247,2]
[376718779,1754087438703,-331.75533952,0.00019247,2]
[376718780,1754087438712,-353.76254315,0.00019247,2]
[376718782,1754087438721,-379.40167366,0.00019247,2]
[376718783,1754087438730,-180.10530156,0.00019247,2]
[376718785,1754087438739,-488.66253286,0.00019247,2]
[376718787,1754087438748,-455.95020855,0.00019247,2]
[376718790,1754087438767,-655.02,0.00019239,3]
[376718792,1754087438777,-4.04979145,0.00019247,2]
[376718794,1754087438786,-460.0,0.00019247,2]
[376718796,1754087438796,-197.34095462,0.00019247,2]
[376718798,1754087438807,-281.91904538,0.00019247,2]
[376718799,1754087438821,-520.4188882,0.00019247,2]
[376718800,1754087438830,-460.0,0.00019247,2]
[376718801,1754087438839,-460.0,0.00019247,2]
[376718802,1754087438848,-460.0,0.00019247,2]
[376718803,1754087438859,-460.0,0.00019247,2]
[376718804,1754087438868,-196.08853625,0.00019247,2]
[376718805,1754087438887,-722.09710364,0.00019247,2]
[376718806,1754087438898,-730.9799992,0.00019247,2]
[376718807,1754087438910,-515.0,0.00019247,2]
[376718808,1754087438922,-5117.21436091,0.00019247,2]
[376718809,1754087438933,-737.51,0.00019247,2]
[376718810,1754087438943,-579.76,0.00019247,2]
[376718811,1754087438953,-460.0,0.00019247,2]
[376718812,1754087438962,-460.0,0.00019247,2]
[376718813,1754087438971,-988.01,0.00019247,2]
[376718814,1754087438981,-217.12036078,0.00019247,2]
[376718815,1754087438991,-460.0,0.00019247,2]
[376718816,1754087439000,-1693.51,0.00019247,2]
[376718817,1754087439010,-460.0,0.00019247,2]
[376718818,1754087439019,-460.0,0.00019247,2]
[376718819,1754087439029,-1389.92,0.00019247,2]
[376718820,1754087439038,-599.5,0.00019247,2]
[376718821,1754087439047,-460.0,0.00019247,2]
[376718822,1754087439056,-460.0,0.00019247,2]
[376718823,1754087439065,-460.0,0.00019247,2]
[376718824,1754087439075,-1003.35,0.00019247,2]
[376718825,1754087439085,-460.0,0.00019247,2]
[376718826,1754087439095,-488.06,0.00019247,2]
[376718827,1754087439105,-460.0,0.00019247,2]
[376718828,1754087439114,-460.0,0.00019247,2]
[376718829,1754087439124,-472.14,0.00019247,2]
[376718830,1754087439136,-460.0,0.00019247,2]
[376718831,1754087439145,-1210.91,0.00019247,2]
[376718832,1754087439154,-618.27,0.00019247,2]
[376718833,1754087439163,-460.0,0.00019247,2]
[376718834,1754087439173,-1133.03,0.00019247,2]
[376718835,1754087439182,-460.0,0.00019247,2]
[376718836,1754087439191,-1130.23,0.00019247,2]
[376718837,1754087439201,-460.0,0.00019247,2]
[376718838,1754087439211,-961.88,0.00019247,2]
[376718839,1754087439222,-460.0,0.00019247,2]
[376718840,1754087439231,-959.25,0.00019247,2]
[376718841,1754087439241,-460.0,0.00019247,2]
[376718842,1754087439251,-2082.85,0.00019247,2]
[376718843,1754087439260,-460.0,0.00019247,2]
[376718844,1754087439270,-460.0,0.00019247,2]
[376718845,1754087439279,-460.0,0.00019247,2]
[376718846,1754087439396,-460.0,0.00019247,2]
[376718847,1754087439406,-460.0,0.00019247,2]
[376718848,1754087439416,-460.0,0.00019247,2]
[376718849,1754087439430,-460.0,0.00019247,2]
[376718850,1754087439440,-460.0,0.00019247,2]
[376718851,1754087439449,-460.0,0.00019247,2]
[376718852,1754087439459,-694.04,0.00019247,2]
[376718853,1754087439468,-460.0,0.00019247,2]
[376718854,1754087439477,-460.0,0.00019247,2]
[376718855,1754087439486,-1270.11,0.00019247,2]
[376718856,1754087439497,-460.0,0.00019247,2]
[376718857,1754087439506,-460.0,0.00019247,2]
[376718858,1754087439515,-4240.77,0.00019247,2]
[376718859,1754087439524,-460.0,0.00019247,2]
[376718860,1754087439534,-460.0,0.00019247,2]
[376718861,1754087439543,-460.0,0.00019247,2]
[376718862,1754087439553,-461.20108533,0.00019247,2]
[376718863,1754087439563,-1977.28,0.00019247,2]
[376718864,1754087439572,-460.0,0.00019247,2]
[376718865,1754087439582,-460.0,0.00019247,2]
[376718866,1754087439591,-460.0,0.00019247,2]
[376718867,1754087439601,-460.0,0.00019247,2]
[376718868,1754087439610,-460.0,0.00019247,2]
[376718869,1754087439620,-880.38,0.00019247,2]
[376718870,1754087439631,-452.65945018,0.00019247,2]
[376718871,1754087439641,-460.0,0.00019247,2]
[376718872,1754087439651,-711.17,0.00019247,2]
[376718874,1754087439660,-363.33624991,0.00019247,2]
[376718875,1754087439670,-460.0,0.00019247,2]
[376718876,1754087439679,-460.0,0.00019247,2]
[376718877,1754087439688,-461.10723941,0.00019247,7]
[376718878,1754087439698,-460.0,0.00019247,2]
[376718879,1754087439708,-460.0,0.00019247,2]
[376718880,1754087439717,-460.0,0.00019247,2]
[376718881,1754087439726,-500.0,0.00019247,2]
[376718882,1754087439735,-500.0,0.00019247,2]
[376718883,1754087439744,-500.0,0.00019247,2]
[376718884,1754087439754,-292.89168028,0.00019247,2]
[376718885,1754087439763,-500.0,0.00019247,2]
[376718886,1754087439772,-500.0,0.00019247,2]
[376718887,1754087439782,-500.0,0.00019247,2]
[376718888,1754087439791,-500.0,0.00019247,2]
[376718889,1754087439800,-500.0,0.00019247,2]
[376718890,1754087439810,-500.0,0.00019247,2]
[376718891,1754087439819,-500.0,0.00019247,2]
[376718892,1754087439828,-500.0,0.00019247,2]
[376718893,1754087439839,-500.0,0.00019247,2]
[376718894,1754087439848,-500.0,0.00019247,2]
[376718896,1754087439858,-500.0,0.00019247,2]
[376718897,1754087439867,-500.0,0.00019247,2]
[376718898,1754087439878,-500.0,0.00019247,2]
[376718900,1754087439887,-500.0,0.00019247,2]
[376718902,1754087439896,-500.0,0.00019247,2]
[376718903,1754087439906,-500.0,0.00019247,2]
[376718904,1754087439916,-500.0,0.00019247,2]
[376718905,1754087439925,-500.0,0.00019247,2]
[376718906,1754087439935,-500.0,0.00019247,2]
[376718907,1754087439944,-500.0,0.00019247,2]
[376718908,1754087439953,-500.0,0.00019247,2]
[376718909,1754087439963,-500.0,0.00019247,2]
[376718910,1754087439973,-556.53113187,0.00019247,2]
[376718911,1754087439983,-306.17661597,0.00019247,2]
[376718913,1754087439993,-500.0,0.00019247,2]
[376718915,1754087440002,-500.0,0.00019247,2]
[376718917,1754087440012,-500.0,0.00019247,2]
[376718919,1754087440021,-500.0,0.00019247,2]
[376718921,1754087440031,-500.0,0.00019247,2]
[376718923,1754087440040,-500.0,0.00019247,2]
[376718925,1754087440050,-500.0,0.00019247,2]
[376718927,1754087440059,-500.0,0.00019247,2]
[376718929,1754087440069,-500.0,0.00019247,2]
[376718931,1754087440078,-635.11929268,0.00019247,2]
[376718933,1754087440088,-500.0,0.00019247,2]
[376718936,1754087440098,-500.0,0.00019247,2]
[376718937,1754087440107,-500.0,0.00019247,2]
[376718940,1754087440117,-500.0,0.00019247,2]
[376718941,1754087440129,-500.0,0.00019247,2]
[376718944,1754087440139,-500.0,0.00019247,2]
[376718946,1754087440148,-500.0,0.00019247,2]
[376718947,1754087440158,-500.0,0.00019247,2]
[376718949,1754087440167,-500.0,0.00019247,2]
[376718951,1754087440176,-500.0,0.00019247,2]
[376718953,1754087440185,-500.0,0.00019247,2]
[376718955,1754087440195,-500.0,0.00019247,2]
[376718958,1754087440204,-500.0,0.00019247,2]
[376718959,1754087440215,-500.0,0.00019247,2]
[376718962,1754087440224,-500.0,0.00019247,2]
[376718963,1754087440234,-500.0,0.00019247,2]
[376718965,1754087440243,-500.0,0.00019247,2]
[376718967,1754087440252,-460.0,0.00019248,2]
[376718969,1754087440261,-460.0,0.00019248,2]
[376718972,1754087440271,-460.0,0.00019248,2]
[376718973,1754087440280,-460.0,0.00019248,2]
[376718975,1754087440290,-460.0,0.00019248,2]
[376718977,1754087440299,-460.0,0.00019248,2]
[376718979,1754087440308,-1108.73,0.00019248,2]
[376718981,1754087440317,-460.0,0.00019248,2]
[376718982,1754087440326,-460.0,0.00019248,2]
[376718984,1754087440336,-460.0,0.00019248,2]
[376718986,1754087440346,-460.0,0.00019248,2]
[376718987,1754087440355,-613.26,0.00019248,2]
[376718989,1754087440365,-312.11058078,0.00019248,2]
[376718990,1754087440374,-460.0,0.00019248,2]
[376718991,1754087440384,-460.0,0.00019248,2]
[376718992,1754087440393,-460.0,0.00019248,2]
[376718994,1754087440403,-460.0,0.00019248,2]
[376718996,1754087440413,-460.0,0.00019248,2]
[376718997,1754087440427,-460.0,0.00019248,2]
[376718998,1754087440436,-460.0,0.00019248,2]
[376719000,1754087440446,-718.16,0.00019248,2]
[376719002,1754087440455,-460.0,0.00019248,2]
[376719004,1754087440464,-460.0,0.00019248,2]
[376719006,1754087440474,-460.0,0.00019248,2]
[376719008,1754087440483,-460.0,0.00019248,2]
[376719009,1754087440493,-460.0,0.00019248,2]
[376719011,1754087440502,-460.0,0.00019248,2]
[376719013,1754087440512,-460.0,0.00019248,2]
[376719014,1754087440521,-460.0,0.00019248,2]
[376719015,1754087440529,-461.56845937,0.00019248,2]
[376719016,1754087440538,-518.79,0.00019248,2]
[376719017,1754087440547,-505.97,0.00019248,2]
[376719018,1754087440555,-460.0,0.00019248,2]
[376719019,1754087440564,-460.0,0.00019248,2]
[376719020,1754087440574,-1509.35,0.00019248,2]
[376719021,1754087440583,-1138.14,0.00019248,2]
[376719022,1754087440592,-876.25,0.00019248,2]
[376719023,1754087440601,-308.083,0.00019248,2]
[376719024,1754087440611,-460.0,0.00019248,2]
[376719025,1754087440620,-460.0,0.00019248,2]
[376719026,1754087440631,-460.0,0.00019248,2]
[376719027,1754087440640,-1449.2,0.00019248,2]
[376719028,1754087440650,-734.44,0.00019248,2]
[376719029,1754087440659,-460.0,0.00019248,2]
[376719030,1754087440669,-460.0,0.00019248,2]
[376719031,1754087440678,-469.88,0.00019248,2]
[376719032,1754087440687,-460.0,0.00019248,2]
[376719033,1754087440696,-460.0,0.00019248,2]
[376719034,1754087440705,-460.0,0.00019248,2]
[376719035,1754087440715,-460.0,0.00019248,2]
[376719036,1754087440724,-460.0,0.00019248,2]
[376719037,1754087440733,-460.0,0.00019248,2]
[376719038,1754087440743,-742.06,0.00019248,2]
[376719039,1754087440752,-460.0,0.00019248,2]
[376719040,1754087440762,-460.0,0.00019248,2]
[376719041,1754087440771,-460.0,0.00019248,2]
[376719042,1754087440781,-242.55227926,0.00019248,2]
[376719043,1754087440791,-730.6,0.00019248,2]
[376719044,1754087440801,-460.0,0.00019248,2]
[376719045,1754087440810,-460.0,0.00019248,2]
[376719046,1754087440820,-460.0,0.00019248,2]
[376719047,1754087440829,-506.52,0.00019248,2]
[376719048,1754087440839,-460.0,0.00019249,2]
[376719049,1754087440848,-460.0,0.00019249,2]
[376719050,1754087440857,-460.0,0.00019249,2]
[376719051,1754087440867,-460.0,0.00019249,2]
[376719052,1754087440877,-460.0,0.00019249,2]
[376719053,1754087440887,-460.0,0.00019249,2]
[376719054,1754087440896,-460.85875591,0.00019249,2]
[376719055,1754087440905,-460.0,0.00019249,2]
[376719056,1754087440915,-460.0,0.00019249,2]
[376719057,1754087440925,-460.0,0.00019249,2]
[376719058,1754087440934,-460.0,0.00019249,2]
[376719059,1754087440944,-206.75568767,0.00019249,2]
[376719060,1754087440953,-308.58603628,0.00019249,2]
[376719061,1754087440962,-460.0,0.00019249,2]
[376719062,1754087440972,-460.0,0.00019249,2]
[376719063,1754087440981,-461.19878474,0.00019249,2]
[376719064,1754087440991,-460.0,0.00019249,2]
[376719065,1754087441000,-460.0,0.00019249,2]
[376719066,1754087441009,-460.0,0.00019249,2]
[376719067,1754087441019,-460.0,0.00019249,2]
[376719068,1754087441028,-460.0,0.00019249,2]
[376719069,1754087441037,-305.25448484,0.00019249,2]
[376719070,1754087441046,-460.0,0.00019249,2]
[376719071,1754087441056,-460.0,0.00019249,2]
[376719072,1754087441065,-460.0,0.00019249,2]
[376719073,1754087441075,-460.0,0.00019249,2]
[376719074,1754087441085,-460.0,0.00019249,2]
[376719075,1754087441095,-460.0,0.00019249,2]
[376719076,1754087441104,-460.0,0.00019249,2]
[376719077,1754087441113,-460.0,0.00019249,2]
[376719078,1754087441123,-460.0,0.00019249,2]
[376719079,1754087441136,-460.0,0.00019249,2]
[376719080,1754087441145,-460.0,0.00019249,2]
[376719081,1754087441155,-668.06,0.00019249,2]
[376719082,1754087441164,-460.0,0.00019249,2]
[376719083,1754087441173,-460.0,0.00019249,2]
[376719084,1754087441182,-518.85,0.00019249,2]
[376719085,1754087441192,-460.0,0.00019249,2]
[376719086,1754087441202,-460.0,0.00019249,2]
[376719087,1754087441211,-460.0,0.00019249,2]
[376719088,1754087441220,-463.49769264,0.00019249,2]
[376719089,1754087441230,-460.0,0.00019249,2]
[376719090,1754087441239,-460.0,0.00019249,2]
[376719091,1754087441249,-460.0,0.00019249,2]
[376719092,1754087441351,-460.0,0.00019249,2]
[376719093,1754087441361,-460.0,0.00019249,2]
[376719094,1754087441370,-811.33,0.00019249,2]
[376719095,1754087441382,-342.08229717,0.00019249,2]
[376719096,1754087441391,-1871.85,0.00019249,2]
[376719097,1754087441400,-460.0,0.00019249,2]
[376719098,1754087441410,-460.0,0.00019249,2]
[376719099,1754087441420,-460.0,0.00019249,2]
[376719100,1754087441430,-460.0,0.00019249,2]
[376719101,1754087441440,-460.0,0.00019249,2]
[376719102,1754087441449,-460.0,0.00019249,2]
[376719103,1754087441458,-538.97,0.00019249,2]
[376719104,1754087441468,-460.0,0.00019249,2]
[376719105,1754087441478,-460.0,0.00019249,2]
[376719106,1754087441487,-460.0,0.00019249,2]
[376719107,1754087441497,-460.0,0.00019249,2]
[376719108,1754087441507,-460.0,0.00019249,2]
[376719109,1754087441516,-460.0,0.00019249,2]
[376719110,1754087441525,-460.0,0.00019249,2]
[376719111,1754087441535,-460.0,0.00019249,2]
[376719112,1754087441545,-460.0,0.00019249,2]
[376719113,1754087441554,-460.0,0.00019249,2]
[376719114,1754087441563,-460.0,0.00019249,2]
[376719115,1754087441572,-460.0,0.00019249,2]
[376719116,1754087441582,-405.32236307,0.00019249,2]
[376719117,1754087441591,-460.0,0.00019249,2]
[376719118,1754087441600,-460.0,0.00019249,2]
[376719119,1754087441609,-460.0,0.00019249,2]
[376719120,1754087441619,-460.0,0.00019249,2]
[376719121,1754087441632,-460.0,0.00019249,2]
[376719122,1754087441641,-460.0,0.00019249,2]
[376719123,1754087441651,-460.0,0.00019249,2]
[376719124,1754087441660,-460.0,0.00019249,2]
[376719125,1754087441669,-460.0,0.00019249,2]
[376719126,1754087441679,-234.20491421,0.00019249,2]
[376719127,1754087441688,-460.0,0.00019249,2]
[376719128,1754087441697,-460.0,0.00019249,2]
[376719129,1754087441707,-460.0,0.00019249,2]
[376719130,1754087441716,-460.0,0.00019249,2]
[376719131,1754087441725,-460.0,0.00019249,2]
[376719132,1754087441735,-467.23,0.00019249,2]
[376719133,1754087441744,-460.0,0.00019249,2]
[376719134,1754087441754,-460.0,0.00019249,2]
[376719135,1754087441763,-460.0,0.00019249,2]
[376719136,1754087441772,-460.0,0.00019249,2]
[376719137,1754087441781,-460.0,0.00019249,2]
[376719138,1754087441790,-460.05,0.00019249,2]
[376719139,1754087441800,-460.0,0.00019249,2]
[376719140,1754087441809,-460.0,0.00019249,2]
[376719141,1754087441819,-460.0,0.00019249,2]
[376719142,1754087441828,-1217.66,0.00019249,2]
[376719143,1754087441838,-460.0,0.00019249,2]
[376719144,1754087441847,-1397.08,0.00019249,2]
[376719145,1754087441857,-792.37,0.00019249,2]
[376719146,1754087441867,-642.01,0.00019249,2]
[376719147,1754087441876,-264.99684139,0.0001925,2]
[376719148,1754087441889,-460.0,0.0001925,2]
[376719149,1754087441898,-460.0,0.0001925,2]
[376719150,1754087441908,-460.0,0.0001925,2]
[376719151,1754087441918,-460.0,0.0001925,2]
[376719152,1754087441928,-460.0,0.0001925,2]
[376719153,1754087441938,-240.64,0.0001925,2]
[376719154,1754087441948,-460.0,0.0001925,2]
[376719155,1754087441958,-2159.79,0.0001925,2]
[376719156,1754087441968,-460.0,0.0001925,2]
[376719157,1754087441979,-460.0,0.0001925,2]
[376719158,1754087441989,-460.0,0.0001925,2]
[376719159,1754087441999,-500.0,0.00019273,2]
[376719160,1754087442010,-500.0,0.00019273,2]
[376719161,1754087442019,-500.0,0.00019273,2]
[376719162,1754087442028,-500.0,0.00019273,2]
[376719163,1754087442038,-500.0,0.00019273,2]
[376719164,1754087442047,-500.0,0.00019273,2]
[376719165,1754087442057,-500.0,0.00019273,2]
[376719166,1754087442066,-500.0,0.00019273,2]
[376719167,1754087442075,-151.0,0.000194,2]
[376719168,1754087442085,-1532.04852786,0.00019422,2]
[376719169,1754087442094,-463.55,0.00019519,2]
[376719170,1754087442103,-455.46794313,0.00019519,2]
[376719171,1754087442112,-472.51900108,0.00019519,2]
[376719172,1754087442121,-460.0,0.00019519,2]
[376719173,1754087442133,-460.0,0.0001952,2]
[376719174,1754087442142,-460.0,0.0001952,2]
[376719175,1754087442152,-460.0,0.0001952,2]
[376719176,1754087442162,-460.0,0.0001952,2]
[376719177,1754087442171,-460.0,0.0001952,2]
[376719178,1754087442181,-460.0,0.0001952,2]
[376719179,1754087442190,-460.0,0.0001952,2]
[376719180,1754087442199,-833.01,0.0001952,2]
[376719181,1754087442208,-460.0,0.0001952,2]
[376719182,1754087442218,-630.5,0.0001952,2]
[376719183,1754087442227,-460.0,0.0001952,2]
[376719184,1754087442236,-460.0,0.0001952,2]
[376719185,1754087442246,-1359.71,0.0001952,2]
[376719186,1754087442255,-460.0,0.0001952,2]
[376719187,1754087442264,-460.0,0.0001952,2]
[376719188,1754087442273,-460.0,0.0001952,2]
[376719189,1754087442282,-1154.66,0.0001952,2]
[376719190,1754087442291,-460.0,0.0001952,2]
[376719191,1754087442300,-460.0,0.0001952,2]
[376719192,1754087442309,-460.0,0.0001952,2]
[376719193,1754087442318,-460.0,0.0001952,2]
[376719194,1754087442328,-460.0,0.0001952,2]
[376719195,1754087442338,-692.66,0.0001952,2]
[376719196,1754087442347,-460.0,0.0001952,2]
[376719197,1754087442357,-469.25,0.0001952,2]
[376719198,1754087442367,-888.31,0.0001952,2]
[376719199,1754087442376,-460.0,0.0001952,2]
[376719200,1754087442388,-460.0,0.0001952,2]
[376719201,1754087442398,-460.0,0.0001952,2]
[376719202,1754087442407,-460.0,0.0001952,2]
[376719203,1754087442421,-460.0,0.0001952,2]
[376719204,1754087442431,-532.92503295,0.0001952,2]
[376719205,1754087442598,-373.25496705,0.0001952,2]
[376719206,1754087442608,-951.23,0.0001952,2]
[376719207,1754087442618,-460.0,0.0001952,2]
[376719208,1754087442627,-667.47,0.0001952,2]
[376719209,1754087442639,-460.0,0.0001952,2]
[376719210,1754087442648,-460.0,0.0001952,2]
[376719211,1754087442657,-460.0,0.0001952,2]
[376719212,1754087442666,-735.68,0.0001952,2]
[376719213,1754087442675,-981.28,0.0001952,2]
[376719214,1754087442684,-1046.59,0.0001952,2]
[376719215,1754087442693,-460.0,0.0001952,2]
[376719216,1754087442702,-460.0,0.0001952,2]